fUST/lending_fUST_20250423
["ID","MTS","AMOUNT","RATE_DAILY","PERIOD"]
[358775332,1745421060461,-151.0,0.00019726,2]
[358775334,1745421060473,-151.0,0.00019726,2]
[358775336,1745421060483,-519.51928914,0.00019726,2]
[358775338,1745421060492,-151.0,0.00019726,2]
[358775340,1745421060502,-1026.07,0.00019726,2]
[358775342,1745421060515,-519.25003515,0.00019726,2]
[358775344,1745421060525,-500.0,0.00019726,2]
[358775346,1745421060534,-500.0,0.00019726,2]
[358775348,1745421060545,-500.0,0.00019726,2]
[358775350,1745421060554,-828.92,0.00019726,2]
[358775352,1745421060564,-794.38,0.00019726,2]
[358775353,1745421060573,-151.0,0.00019726,2]
[358775354,1745421060582,-151.0,0.00019726,2]
[358775355,1745421060591,-151.0,0.00019726,2]
[358775356,1745421060601,-1029.47,0.00019726,2]
[358775357,1745421060610,-3316.061954,0.00019726,2]
[358775358,1745421060619,-3316.061954,0.00019726,2]
[358775359,1745421060629,-3316.061954,0.00019726,2]
[358775360,1745421060638,-500.0,0.00019726,2]
[358775361,1745421060648,-500.0,0.00019726,2]
[358775362,1745421060657,-2527.29,0.00019726,2]
[358775363,1745421060666,-3316.061954,0.00019726,2]
[358775364,1745421060676,-3316.061954,0.00019726,2]
[358775365,1745421060686,-3316.061954,0.00019726,2]
[358775366,1745421060695,-500.0,0.00019726,2]
[358775367,1745421060705,-500.0,0.00019726,2]
[358775368,1745421060715,-500.0,0.00019726,2]
[358775369,1745421060724,-500.0,0.00019726,2]
[358775370,1745421060734,-500.0,0.00019726,2]
[358775371,1745421060744,-500.0,0.00019726,2]
[358775372,1745421060754,-5345.67,0.00019726,2]
[358775373,1745421060766,-500.0,0.00019726,2]
[358775374,1745421060776,-5305.65,0.00019726,2]
[358775375,1745421060786,-500.0,0.00019726,2]
[358775376,1745421060796,-500.0,0.00019726,2]
[358775377,1745421060805,-151.0,0.00019726,2]
[358775378,1745421060815,-151.0,0.00019726,2]
[358775379,1745421060824,-151.0,0.00019726,2]
[358775380,1745421060833,-168.348894,0.00019726,2]
[358775381,1745421060843,-168.348894,0.00019726,2]
[358775382,1745421060852,-500.0,0.00019726,2]
[358775383,1745421060861,-168.348894,0.00019726,2]
[358775384,1745421060872,-500.0,0.00019726,2]
[358775385,1745421060882,-168.348894,0.00019726,2]
[358775386,1745421060891,-168.348894,0.00019726,2]
[358775387,1745421060900,-168.348894,0.00019726,2]
[358775388,1745421060910,-473.329652,0.00019726,2]
[358775389,1745421060920,-500.0,0.00019726,2]
[358775390,1745421060929,-473.329652,0.00019726,2]
[358775391,1745421060939,-500.0,0.00019726,2]
[358775392,1745421060948,-500.0,0.00019726,2]
[358775393,1745421060958,-473.329652,0.00019726,2]
[358775394,1745421060968,-500.0,0.00019726,2]
[358775395,1745421060978,-500.0,0.00019726,2]
[358775396,1745421060987,-473.329652,0.00019726,2]
[358775397,1745421060997,-500.0,0.00019726,2]
[358775398,1745421061007,-473.329652,0.00019726,2]
[358775399,1745421061018,-473.329652,0.00019726,2]
[358775400,1745421061027,-150.91502771,0.00019726,2]
[358775401,1745421061037,-500.0,0.00019726,2]
[358775402,1745421061046,-500.0,0.00019726,2]
[358775403,1745421061056,-500.0,0.00019726,2]
[358775404,1745421061065,-500.0,0.00019726,2]
[358775405,1745421061074,-500.0,0.00019726,2]
[358775406,1745421061084,-737.48,0.00019726,2]
[358775407,1745421061094,-511.03,0.00019726,2]
[358775408,1745421061103,-500.0,0.00019726,2]
[358775409,1745421061113,-500.0,0.00019726,2]
[358775410,1745421061122,-500.0,0.00019726,2]
[358775411,1745421061132,-500.0,0.00019726,2]
[358775412,1745421061142,-500.0,0.00019726,2]
[358775413,1745421061151,-500.0,0.00019726,2]
[358775414,1745421061161,-500.0,0.00019726,2]
[358775415,1745421061170,-500.0,0.00019726,2]
[358775416,1745421061180,-750.55,0.00019726,2]
[358775417,1745421061190,-500.0,0.00019726,2]
[358775418,1745421061200,-500.0,0.00019726,2]
[358775419,1745421061209,-500.0,0.00019726,2]
[358775420,1745421061219,-500.0,0.00019726,2]
[358775421,1745421061228,-500.0,0.00019726,2]
[358775422,1745421061238,-500.0,0.00019726,2]
[358775423,1745421061247,-500.0,0.00019726,2]
[358775424,1745421061256,-500.0,0.00019726,2]
[358775425,1745421061267,-500.0,0.00019726,2]
[358775426,1745421061276,-500.0,0.00019726,2]
[358775427,1745421061285,-1148.44,0.00019726,2]
[358775428,1745421061295,-500.0,0.00019726,2]
[358775429,1745421061304,-350.66812157,0.00019726,2]
[358775430,1745421061313,-500.0,0.00019726,2]
[358775431,1745421061323,-500.0,0.00019726,2]
[358775432,1745421061333,-500.0,0.00019726,2]
[358775433,1745421061343,-500.0,0.00019726,2]
[358775434,1745421061352,-468.20996336,0.00019726,2]
[358775435,1745421061362,-251.987073,0.00019726,2]
[358775436,1745421061371,-251.987073,0.00019726,2]
[358775437,1745421061381,-251.987073,0.00019726,2]
[358775438,1745421061390,-151.0,0.00019726,2]
[358775439,1745421061400,-151.0,0.00019726,2]
[358775440,1745421061409,-151.0,0.00019726,2]
[358775441,1745421061418,-500.0,0.00019726,2]
[358775442,1745421061427,-500.0,0.00019726,2]
[358775443,1745421061437,-251.987073,0.00019726,2]
[358775444,1745421061446,-251.987073,0.00019726,2]
[358775445,1745421061455,-251.987073,0.00019726,2]
[358775446,1745421061467,-511.31671624,0.00019726,2]
[358775447,1745421061477,-500.0,0.00019726,2]
[358775448,1745421061486,-1296.58,0.00019726,2]
[358775449,1745421061495,-500.0,0.00019726,2]
[358775450,1745421061505,-500.0,0.00019726,2]
[358775451,1745421061515,-151.0,0.00019726,2]
[358775452,1745421061525,-151.0,0.00019726,2]
[358775453,1745421061534,-151.0,0.00019726,2]
[358775454,1745421061544,-500.0,0.00019726,2]
[358775455,1745421061554,-549.82626219,0.00019726,2]
[358775456,1745421061563,-500.0,0.00019726,2]
[358775457,1745421061572,-500.0,0.00019726,2]
[358775458,1745421061582,-500.0,0.00019726,2]
[358775459,1745421061591,-655.67,0.00019726,2]
[358775460,1745421061601,-500.0,0.00019726,2]
[358775461,1745421061611,-2580.76,0.00019726,2]
[358775462,1745421061620,-500.0,0.00019726,2]
[358775463,1745421061629,-500.0,0.00019726,2]
[358775464,1745421061639,-500.0,0.00019726,2]
[358775465,1745421061648,-500.0,0.00019726,2]
[358775466,1745421061657,-500.0,0.00019726,2]
[358775467,1745421061666,-500.0,0.00019726,2]
[358775469,1745421061676,-500.0,0.00019726,2]
[358775471,1745421061685,-1000.0,0.00019726,2]
[358775473,1745421061695,-1075.51,0.00019726,2]
[358775475,1745421061705,-500.0,0.00019726,2]
[358775476,1745421061715,-500.0,0.00019726,2]
[358775477,1745421061724,-500.0,0.00019726,2]
[358775478,1745421061733,-500.0,0.00019726,2]
[358775479,1745421061743,-500.0,0.00019726,2]
[358775480,1745421061752,-638.56716728,0.00019726,2]
[358775481,1745421061762,-500.0,0.00019726,2]
[358775483,1745421061773,-500.0,0.00019726,2]
[358775484,1745421061783,-949.99,0.00019726,2]
[358775486,1745421061793,-500.0,0.00019726,2]
[358775488,1745421061802,-500.0,0.00019726,2]
[358775489,1745421061811,-500.0,0.00019726,2]
[358775490,1745421061820,-500.0,0.00019726,2]
[358775491,1745421061830,-500.0,0.00019726,2]
[358775492,1745421061839,-500.0,0.00019726,2]
[358775493,1745421061848,-500.0,0.00019726,2]
[358775494,1745421061858,-500.0,0.00019726,2]
[358775495,1745421061867,-643.48522295,0.00019726,2]
[358775496,1745421061877,-151.0,0.00019726,2]
[358775497,1745421061886,-151.0,0.00019726,2]
[358775498,1745421061896,-151.0,0.00019726,2]
[358775499,1745421061905,-457.589753,0.00019726,2]
[358775500,1745421061915,-457.589753,0.00019726,2]
[358775501,1745421061924,-457.589753,0.00019726,2]
[358775502,1745421061934,-500.0,0.00019726,2]
[358775503,1745421061943,-153.731829,0.00019726,2]
[358775504,1745421061952,-272.1972822,0.00019726,2]
[358775505,1745421061961,-457.589753,0.00019726,2]
[358775506,1745421061971,-457.589753,0.00019726,2]
[358775507,1745421061980,-457.589753,0.00019726,2]
[358775508,1745421061989,-315.40091124,0.00019726,2]
[358775509,1745421061998,-500.0,0.00019726,2]
[358775510,1745421062008,-1310.42,0.00019726,2]
[358775511,1745421062019,-500.0,0.00019726,2]
[358775512,1745421062029,-274.41566099,0.00019726,2]
[358775513,1745421062038,-500.0,0.00019726,2]
[358775514,1745421062047,-500.0,0.00019726,2]
[358775515,1745421062057,-500.0,0.00019726,2]
[358775516,1745421062067,-510.82,0.00019726,2]
[358775517,1745421062076,-500.0,0.00019726,2]
[358775518,1745421062086,-851.24,0.00019726,2]
[358775519,1745421062095,-500.0,0.00019726,2]
[358775520,1745421062105,-510.56,0.00019726,2]
[358775521,1745421062115,-500.0,0.00019726,2]
[358775522,1745421062124,-500.0,0.00019726,2]
[358775523,1745421062133,-1314.6,0.00019726,2]
[358775524,1745421062143,-505.66851989,0.00019726,2]
[358775525,1745421062152,-500.0,0.00019726,2]
[358775526,1745421062162,-500.0,0.00019726,2]
[358775527,1745421062295,-617.04856025,0.00019726,2]
[358775528,1745421062306,-516.7,0.00019726,2]
[358775529,1745421062315,-500.0,0.00019726,2]
[358775530,1745421062325,-500.0,0.00019726,2]
[358775531,1745421062334,-500.0,0.00019726,2]
[358775532,1745421062345,-500.0,0.00019726,2]
[358775533,1745421062354,-500.0,0.00019726,2]
[358775534,1745421062363,-500.0,0.00019726,2]
[358775535,1745421062373,-500.0,0.00019726,2]
[358775536,1745421062382,-736.53,0.00019726,2]
[358775537,1745421062391,-500.0,0.00019726,2]
[358775538,1745421062401,-500.0,0.00019726,2]
[358775539,1745421062410,-500.0,0.00019726,2]
[358775540,1745421062419,-500.0,0.00019726,2]
[358775541,1745421062429,-550.93,0.00019726,2]
[358775542,1745421062438,-500.0,0.00019726,2]
[358775543,1745421062448,-505.98,0.00019726,2]
[358775544,1745421062457,-500.0,0.00019726,2]
[358775545,1745421062470,-1032.63,0.00019726,2]
[358775546,1745421062479,-151.0,0.00019726,2]
[358775547,1745421062488,-500.0,0.00019726,2]
[358775548,1745421062498,-151.0,0.00019726,2]
[358775549,1745421062507,-151.0,0.00019726,2]
[358775550,1745421062520,-500.0,0.00019726,2]
[358775551,1745421062529,-566.801553,0.00019726,2]
[358775552,1745421062540,-500.0,0.00019726,2]
[358775553,1745421062549,-500.0,0.00019726,2]
[358775554,1745421062559,-500.0,0.00019726,2]
[358775555,1745421062569,-654.47,0.00019726,2]
[358775556,1745421062579,-500.0,0.00019726,2]
[358775557,1745421062589,-500.0,0.00019726,2]
[358775558,1745421062598,-151.0,0.00019726,2]
[358775559,1745421062608,-211.999404,0.00019726,2]
[358775560,1745421062617,-500.0,0.00019726,2]
[358775561,1745421062627,-500.0,0.00019726,2]
[358775562,1745421062637,-500.0,0.00019726,2]
[358775563,1745421062647,-500.0,0.00019726,2]
[358775564,1745421062656,-578.42,0.00019726,2]
[358775565,1745421062666,-500.0,0.00019726,2]
[358775566,1745421062675,-500.0,0.00019726,2]
[358775567,1745421062685,-367.808619,0.00019726,2]
[358775568,1745421062694,-367.808619,0.00019726,2]
[358775569,1745421062704,-367.808619,0.00019726,2]
[358775571,1745421062713,-639.77,0.00019726,2]
[358775573,1745421062723,-505.15103849,0.00019726,2]
[358775575,1745421062733,-367.808619,0.00019726,2]
[358775577,1745421062743,-367.808619,0.00019726,2]
[358775579,1745421062752,-367.808619,0.00019726,2]
[358775580,1745421062761,-528.91,0.00019726,2]
[358775582,1745421062773,-569.8,0.00019726,2]
[358775584,1745421062782,-187.24,0.00019726,2]
[358775586,1745421062792,-500.0,0.00019726,2]
[358775588,1745421062801,-502.82480662,0.00019726,2]
[358775590,1745421062810,-500.0,0.00019726,2]
[358775592,1745421062819,-259.18269667,0.00019726,2]
[358775593,1745421062830,-500.0,0.00019726,2]
[358775594,1745421062839,-500.0,0.00019726,2]
[358775595,1745421062850,-530.40608626,0.00019726,2]
[358775596,1745421062859,-665.67,0.00019726,2]
[358775597,1745421062868,-503.30168827,0.00019726,2]
[358775598,1745421062878,-500.0,0.00019726,2]
[358775599,1745421062887,-500.0,0.00019726,2]
[358775601,1745421062896,-650.06,0.00019726,2]
[358775603,1745421062906,-399.53244888,0.00019726,2]
[358775605,1745421062915,-500.0,0.00019726,2]
[358775607,1745421062925,-559.28,0.00019726,2]
[358775609,1745421062934,-636.4,0.00019726,2]
[358775611,1745421062944,-500.0,0.00019726,2]
[358775613,1745421062953,-500.0,0.00019726,2]
[358775615,1745421062962,-500.0,0.00019726,2]
[358775616,1745421062971,-500.0,0.00019726,2]
[358775618,1745421062981,-500.0,0.00019726,2]
[358775619,1745421062990,-1488.91,0.00019726,2]
[358775620,1745421063000,-13981.35,0.00019726,2]
[358775621,1745421063010,-500.0,0.00019726,2]
[358775622,1745421063021,-500.0,0.00019726,2]
[358775623,1745421063032,-500.0,0.00019726,2]
[358775624,1745421063042,-500.0,0.00019726,2]
[358775625,1745421063052,-562.35,0.00019726,2]
[358775626,1745421063061,-500.0,0.00019726,2]
[358775627,1745421063071,-724.51,0.00019726,2]
[358775628,1745421063080,-1357.99,0.00019726,2]
[358775629,1745421063089,-291.98221385,0.00019726,2]
[358775630,1745421063099,-500.0,0.00019726,2]
[358775631,1745421063108,-500.0,0.00019726,2]
[358775632,1745421063117,-4001.49,0.00019726,2]
[358775633,1745421063127,-359.96302275,0.00019726,2]
[358775634,1745421063136,-760.23,0.00019726,2]
[358775635,1745421063146,-650.45,0.00019726,2]
[358775636,1745421063155,-929.33,0.00019726,2]
[358775637,1745421063165,-583.16,0.00019726,2]
[358775638,1745421063174,-500.0,0.00019726,2]
[358775639,1745421063184,-500.0,0.00019726,2]
[358775640,1745421063193,-1460.33,0.00019726,2]
[358775641,1745421063202,-518.73,0.00019726,2]
[358775642,1745421063212,-500.0,0.00019726,2]
[358775643,1745421063222,-12838.96,0.00019726,2]
[358775644,1745421063231,-500.0,0.00019726,2]
[358775645,1745421063241,-541.41,0.00019726,2]
[358775646,1745421063251,-728.78,0.00019726,2]
[358775647,1745421063261,-1104.92,0.00019726,2]
[358775648,1745421063273,-500.0,0.00019726,2]
[358775649,1745421063283,-4691.99,0.00019726,2]
[358775650,1745421063292,-500.0,0.00019726,2]
[358775651,1745421063301,-1377.8,0.00019726,2]
[358775652,1745421063311,-5354.31,0.00019726,2]
[358775653,1745421063320,-500.0,0.00019726,2]
[358775654,1745421063330,-500.0,0.00019726,2]
[358775655,1745421063339,-1350.35,0.00019726,2]
[358775656,1745421063349,-500.0,0.00019726,2]
[358775657,1745421063358,-500.0,0.00019726,2]
[358775658,1745421063368,-808.73,0.00019726,2]
[358775659,1745421063378,-2480.68,0.00019726,2]
[358775660,1745421063387,-1479.43,0.00019726,2]
[358775661,1745421063397,-500.0,0.00019726,2]
[358775662,1745421063406,-500.0,0.00019726,2]
[358775663,1745421063416,-500.0,0.00019726,2]
[358775664,1745421063426,-366.58756977,0.00019726,2]
[358775665,1745421063435,-500.0,0.00019726,2]
[358775666,1745421063444,-500.0,0.00019726,2]
[358775667,1745421063454,-502.77771561,0.00019726,2]
[358775668,1745421063465,-500.0,0.00019726,2]
[358775669,1745421063475,-583.4,0.00019726,2]
[358775670,1745421063484,-506.65,0.00019726,2]
[358775671,1745421063493,-606.14,0.00019726,2]
[358775672,1745421063504,-1455.5,0.00019726,2]
[358775673,1745421063514,-1183.05,0.00019726,2]
[358775674,1745421063525,-500.0,0.00019726,2]
[358775675,1745421063534,-500.0,0.00019726,2]
[358775676,1745421063546,-500.0,0.00019726,2]
[358775677,1745421063557,-861.21,0.00019726,2]
[358775678,1745421063567,-500.0,0.00019726,2]
[358775679,1745421063577,-609.34,0.00019726,2]
[358775680,1745421063587,-501.42,0.00019726,2]
[358775681,1745421063596,-1059.4,0.00019726,2]
[358775682,1745421063606,-500.0,0.00019726,2]
[358775683,1745421063615,-638.65,0.00019726,2]
[358775684,1745421063625,-500.0,0.00019726,2]
[358775685,1745421063634,-1839.79,0.00019726,2]
[358775686,1745421063644,-1017.22,0.00019726,2]
[358775687,1745421063654,-500.0,0.00019726,2]
[358775688,1745421063663,-500.0,0.00019726,2]
[358775689,1745421063673,-5564.75,0.00019726,2]
[358775690,1745421063683,-3162.62,0.00019726,2]
[358775691,1745421063693,-151.0,0.00019726,2]
[358775692,1745421063704,-1094.14,0.00019726,2]
[358775693,1745421063714,-151.0,0.00019726,2]
[358775694,1745421063725,-151.0,0.00019726,2]
[358775695,1745421063735,-500.0,0.00019726,2]
[358775696,1745421063745,-500.0,0.00019726,2]
[358775697,1745421063755,-500.0,0.00019726,2]
[358775698,1745421063765,-151.0,0.00019726,2]
[358775699,1745421063779,-151.0,0.00019726,2]
[358775700,1745421063790,-500.0,0.00019726,2]
[358775701,1745421063800,-151.0,0.00019726,2]
[358775702,1745421063810,-500.0,0.00019726,2]
[358775703,1745421063820,-151.0,0.00019726,2]
[358775704,1745421063830,-225.724241,0.00019726,2]
[358775705,1745421063840,-500.0,0.00019726,2]
[358775706,1745421063849,-500.0,0.00019726,2]
[358775707,1745421063859,-750.9,0.00019726,2]
[358775708,1745421063868,-500.0,0.00019726,2]
[358775709,1745421063878,-500.0,0.00019726,2]
[358775710,1745421063887,-895.9,0.00019726,2]
[358775711,1745421063896,-500.0,0.00019726,2]
[358775712,1745421063906,-500.0,0.00019726,2]
[358775713,1745421063916,-1003.15,0.00019726,2]
[358775714,1745421063926,-1275.08,0.00019726,2]
[358775715,1745421063935,-500.0,0.00019726,2]
[358775716,1745421063946,-500.0,0.00019726,2]
[358775717,1745421063955,-500.0,0.00019726,2]
[358775718,1745421063966,-1100.304779,0.00019726,2]
[358775719,1745421063976,-1100.304779,0.00019726,2]
[358775720,1745421063987,-1260.77,0.00019726,2]
[358775721,1745421063996,-1100.304779,0.00019726,2]
[358775722,1745421064007,-500.0,0.00019726,2]
[358775723,1745421064018,-500.0,0.00019726,2]
[358775724,1745421064028,-786.77,0.00019726,2]
[358775725,1745421064038,-2960.3,0.00019726,2]
[358775726,1745421064049,-500.0,0.00019726,2]
[358775727,1745421064059,-1100.304779,0.00019726,2]
[358775728,1745421064068,-1100.304779,0.00019726,2]
[358775729,1745421064078,-1069.02,0.00019726,2]
[358775730,1745421064088,-1100.304779,0.00019726,2]
[358775731,1745421064223,-500.0,0.00019726,2]
[358775732,1745421064235,-500.0,0.00019726,2]
[358775733,1745421064245,-500.0,0.00019726,2]
[358775734,1745421064255,-504.63065227,0.00019726,2]
[358775735,1745421064264,-500.0,0.00019726,2]
[358775736,1745421064276,-500.0,0.00019726,2]
[358775737,1745421064286,-1011.14,0.00019726,2]
[358775738,1745421064295,-4630.58,0.00019726,2]
[358775739,1745421064305,-500.0,0.00019726,2]
[358775740,1745421064314,-579.76,0.00019726,2]
[358775741,1745421064324,-635.21,0.00019726,2]
[358775742,1745421064334,-500.0,0.00019726,2]
[358775743,1745421064343,-917.94,0.00019726,2]
[358775744,1745421064353,-673.49,0.00019726,2]
[358775745,1745421064362,-771.99,0.00019726,2]
[358775746,1745421064371,-500.0,0.00019726,2]
[358775747,1745421064381,-823.86,0.00019726,2]
[358775748,1745421064391,-500.0,0.00019726,2]
[358775749,1745421064400,-500.0,0.00019726,2]
[358775750,1745421064410,-515.46,0.00019726,2]
[358775751,1745421064420,-500.0,0.00019726,2]
[358775752,1745421064430,-2927.1,0.00019726,2]
[358775753,1745421064440,-500.0,0.00019726,2]
[358775754,1745421064450,-500.0,0.00019726,2]
[358775755,1745421064460,-432.49311301,0.00019726,2]
[358775756,1745421064474,-500.0,0.00019726,2]
[358775757,1745421064484,-859.51,0.00019726,2]
[358775758,1745421064494,-500.0,0.00019726,2]
[358775759,1745421064504,-500.0,0.00019726,2]
[358775760,1745421064514,-500.0,0.00019726,2]
[358775761,1745421064529,-500.0,0.00019726,2]
[358775762,1745421064539,-500.0,0.00019726,2]
[358775763,1745421064549,-500.0,0.00019726,2]
[358775764,1745421064559,-500.0,0.00019726,2]
[358775765,1745421064570,-6046.69,0.00019726,2]
[358775766,1745421064580,-500.0,0.00019726,2]
[358775767,1745421064590,-500.0,0.00019726,2]
[358775768,1745421064599,-500.0,0.00019726,2]
[358775769,1745421064609,-602.51,0.00019726,2]
[358775770,1745421064619,-500.0,0.00019726,2]
[358775771,1745421064628,-500.0,0.00019726,2]
[358775772,1745421064638,-602.48,0.00019726,2]
[358775773,1745421064648,-500.0,0.00019726,2]
[358775774,1745421064657,-500.0,0.00019726,2]
[358775775,1745421064667,-1079.96,0.00019726,2]
[358775776,1745421064677,-1384.37,0.00019726,2]
[358775777,1745421064687,-1057.851985,0.00019726,2]
[358775778,1745421064696,-1057.851985,0.00019726,2]
[358775779,1745421064706,-1057.851985,0.00019726,2]
[358775780,1745421064715,-554.31,0.00019726,2]
[358775781,1745421064725,-908.18,0.00019726,2]
[358775782,1745421064735,-500.0,0.00019726,2]
[358775783,1745421064745,-500.0,0.00019726,2]
[358775784,1745421064755,-1057.851985,0.00019726,2]
[358775785,1745421064764,-1057.851985,0.00019726,2]
[358775786,1745421064777,-1057.851993,0.00019726,2]
[358775787,1745421064787,-500.0,0.00019726,2]
[358775788,1745421064797,-500.0,0.00019726,2]
[358775789,1745421064807,-463.71713372,0.00019726,2]
[358775790,1745421064817,-500.0,0.00019726,2]
[358775791,1745421064828,-500.0,0.00019726,2]
[358775792,1745421064837,-500.0,0.00019726,2]
[358775793,1745421064847,-500.0,0.00019726,2]
[358775794,1745421064857,-500.0,0.00019726,2]
[358775795,1745421064868,-508.55,0.00019726,2]
[358775796,1745421064879,-830.66,0.00019726,2]
[358775797,1745421064889,-500.0,0.00019726,2]
[358775798,1745421064899,-500.0,0.00019726,2]
[358775799,1745421064909,-500.0,0.00019726,2]
[358775800,1745421064919,-500.0,0.00019726,2]
[358775801,1745421064928,-500.0,0.00019726,2]
[358775802,1745421064939,-500.0,0.00019726,2]
[358775803,1745421064948,-500.0,0.00019726,2]
[358775804,1745421064958,-500.0,0.00019726,2]
[358775805,1745421064968,-500.0,0.00019726,2]
[358775806,1745421064978,-500.0,0.00019726,2]
[358775807,1745421064988,-500.0,0.00019726,2]
[358775808,1745421064998,-500.0,0.00019726,2]
[358775809,1745421065008,-500.0,0.00019726,2]
[358775810,1745421065019,-659.37,0.00019726,2]
[358775811,1745421065029,-500.0,0.00019726,2]
[358775812,1745421065039,-500.0,0.00019726,2]
[358775813,1745421065049,-500.0,0.00019773,2]
[358775814,1745421065059,-450.54130739,0.00019773,2]
[358775815,1745421065069,-500.0,0.00019773,2]
[358775816,1745421065079,-500.36044069,0.00019773,2]
[358775817,1745421065090,-500.0,0.00019773,2]
[358775818,1745421065100,-500.0,0.00019773,2]
[358775819,1745421065110,-500.0,0.00019773,2]
[358775820,1745421065121,-500.0,0.00019773,2]
[358775821,1745421065131,-500.0,0.00019773,2]
[358775822,1745421065140,-500.0,0.00019773,2]
[358775823,1745421065150,-553.78960758,0.00019773,2]
[358775824,1745421065159,-500.0,0.00019773,2]
[358775825,1745421065169,-502.18756215,0.00019773,2]
[358775826,1745421065179,-500.0,0.00019773,2]
[358775827,1745421065188,-500.0,0.00019773,2]
[358775828,1745421065198,-500.13208175,0.00019773,2]
[358775829,1745421065210,-500.0,0.00019773,2]
[358775830,1745421065220,-449.11029804,0.00019773,2]
[358775831,1745421065230,-500.0,0.00019773,2]
[358775832,1745421065241,-502.26641708,0.00019773,2]
[358775833,1745421065251,-500.0,0.00019773,2]
[358775834,1745421065261,-500.0,0.00019773,2]
[358775835,1745421065271,-500.0,0.00019773,2]
[358775836,1745421065281,-500.0,0.00019773,2]
[358775837,1745421065291,-500.0,0.00019773,2]
[358775838,1745421065301,-500.0,0.00019773,2]
[358775839,1745421065311,-500.0,0.00019773,2]
[358775840,1745421065320,-500.0,0.00019773,2]
[358775841,1745421065330,-500.0,0.00019773,2]
[358775842,1745421065339,-500.0,0.00019773,2]
[358775843,1745421065348,-500.0,0.00019773,2]
[358775844,1745421065358,-500.0,0.00019773,2]
[358775845,1745421065367,-500.0,0.00019773,2]
[358775846,1745421065376,-500.0,0.00019773,2]
[358775847,1745421065386,-500.0,0.00019773,2]
[358775848,1745421065396,-511.65434636,0.00019773,2]
[358775849,1745421065405,-500.0,0.00019773,2]
[358775850,1745421065415,-500.94284137,0.00019773,2]
[358775851,1745421065424,-500.0,0.00019773,2]
[358775852,1745421065434,-500.0,0.00019773,2]
[358775853,1745421065443,-500.0,0.00019773,2]
[358775854,1745421065453,-500.0,0.00019773,2]
[358775855,1745421065466,-616.90696445,0.00019773,2]
[358775856,1745421065477,-500.0,0.00019773,2]
[358775857,1745421065487,-500.0,0.00019773,2]
[358775858,1745421065497,-162.103045,0.00019773,2]
[358775859,1745421065507,-162.103045,0.00019773,2]
[358775860,1745421065517,-214.376623,0.00019773,2]
[358775861,1745421065528,-214.376623,0.00019773,2]
[358775862,1745421065537,-246.822262,0.00019773,2]
[358775863,1745421065548,-246.822262,0.00019773,2]
[358775864,1745421065558,-367.808619,0.00019773,2]
[358775865,1745421065567,-367.808619,0.00019773,2]
[358775866,1745421065578,-1100.304779,0.00019773,2]
[358775867,1745421065587,-1100.304779,0.00019773,2]
[358775868,1745421065597,-151.0,0.0001978,2]